[Event "Titled Tuesday Blitz August 08 Early 2023"]
[White "Kiseljova, Marya"]
[Black "Bures, Vit"]
[WhiteFideId "4155009"]
[BlackFideId "309052"]
[WhiteElo "2211"]
[BlackElo "2336"]
[Result "0-1"]
[Round "4"]
[TimeControl "180+1"]
[Date "2023.08.08"]
[WhiteClock "0:00:26"]
[BlackClock "0:00:08"]
[Board "233"]

1. d4 {[%clk 0:02:59]}  d5 {[%clk 0:03:00]} 2. c4 {[%clk 0:03:00]}  c6 {[%clk 0:03:00]} 3. Nf3 {[%clk 0:03:00]}  Nf6 {[%clk 0:03:00]} 4. g3 {[%clk 0:03:01]}  Bg4 {[%clk 0:03:00]} 5. Bg2 {[%clk 0:03:00]}  e6 {[%clk 0:03:00]} 6. O-O {[%clk 0:02:59]}  Nbd7 {[%clk 0:03:00]} 7. cxd5 {[%clk 0:02:56]}  exd5 {[%clk 0:02:52]} 8. Bf4 {[%clk 0:02:51]}  Be7 {[%clk 0:02:48]} 9. Qb3 {[%clk 0:02:48]}  Qb6 {[%clk 0:02:48]} 10. Nbd2 {[%clk 0:02:44]}  O-O {[%clk 0:02:46]} 11. Rfe1 {[%clk 0:02:42]}  Rfe8 {[%clk 0:02:37]} 12. Qxb6 {[%clk 0:02:38]}  axb6 {[%clk 0:02:32]} 13. Ne5 {[%clk 0:02:38]}  Nxe5 {[%clk 0:02:27]} 14. Bxe5 {[%clk 0:02:39]}  h6 {[%clk 0:02:06]} 15. h3 {[%clk 0:02:35]}  Bf5 {[%clk 0:02:03]} 16. a3 {[%clk 0:02:32]}  b5 {[%clk 0:01:53]} 17. Nb3 {[%clk 0:02:23]}  Nd7 {[%clk 0:01:37]} 18. Bf4 {[%clk 0:02:21]}  Bc2 {[%clk 0:01:33]} 19. Nd2 {[%clk 0:02:19]}  b4 {[%clk 0:01:30]} 20. axb4 {[%clk 0:02:11]}  Bxb4 {[%clk 0:01:28]} 21. Bf3 {[%clk 0:02:05]}  Rxa1 {[%clk 0:01:18]} 22. Rxa1 {[%clk 0:02:05]}  g5 {[%clk 0:01:18]} 23. Be3 {[%clk 0:02:04]}  Rxe3 {[%clk 0:01:15]} 24. Ra8+ {[%clk 0:01:51]}  Kg7 {[%clk 0:01:02]} 25. fxe3 {[%clk 0:01:51]}  Bxd2 {[%clk 0:01:02]} 26. Kf2 {[%clk 0:01:51]}  Nb6 {[%clk 0:00:56]} 27. Rb8 {[%clk 0:01:50]}  Nc4 {[%clk 0:00:54]} 28. Rxb7 {[%clk 0:01:47]}  Bxe3+ {[%clk 0:00:54]} 29. Kg2 {[%clk 0:01:47]}  Bxd4 {[%clk 0:00:52]} 30. b4 {[%clk 0:01:42]}  Ne3+ {[%clk 0:00:25]} 31. Kh2 {[%clk 0:01:39]}  Be5 {[%clk 0:00:21]} 32. Bh5 {[%clk 0:01:23]}  Nf1+ {[%clk 0:00:07]} 33. Kg2 {[%clk 0:01:21]}  Nxg3 {[%clk 0:00:08]} 34. Bxf7 {[%clk 0:01:21]}  Be4+ {[%clk 0:00:07]} 35. Kf2 {[%clk 0:01:20]}  Kf6 {[%clk 0:00:07]} 36. Be8 {[%clk 0:01:17]}  Nf5 {[%clk 0:00:07]} 37. Bxc6 {[%clk 0:01:13]}  Bd4+ {[%clk 0:00:08]} 38. Ke1 {[%clk 0:01:13]}  Ke5 {[%clk 0:00:08]} 39. Bd7 {[%clk 0:01:07]}  Ne3 {[%clk 0:00:05]} 40. Be8 {[%clk 0:01:01]}  Nc4 {[%clk 0:00:05]} 41. Re7+ {[%clk 0:00:58]}  Kf4 {[%clk 0:00:05]} 42. Bb5 {[%clk 0:00:50]}  Bc3+ {[%clk 0:00:05]} 43. Kf2 {[%clk 0:00:47]}  Bxb4 {[%clk 0:00:06]} 44. Rf7+ {[%clk 0:00:47]}  Ke5 {[%clk 0:00:06]} 45. Bxc4 {[%clk 0:00:44]}  dxc4 {[%clk 0:00:07]} 46. Rc7 {[%clk 0:00:41]}  c3 {[%clk 0:00:07]} 47. Ke1 {[%clk 0:00:40]}  c2+ {[%clk 0:00:07]} 48. Kf2 {[%clk 0:00:41]}  Bd2 {[%clk 0:00:07]} 49. Rc5+ {[%clk 0:00:39]}  Kd4 {[%clk 0:00:07]} 50. e3+ {[%clk 0:00:23]}  Bxe3+ {[%clk 0:00:06]} 51. Ke2 {[%clk 0:00:22]}  c1=Q {[%clk 0:00:07]} 52. Rxc1 {[%clk 0:00:17]}  Bxc1 {[%clk 0:00:08]} 53. Kf2 {[%clk 0:00:16]}  Bf4 {[%clk 0:00:06]} 54. Kg1 {[%clk 0:00:16]}  h5 {[%clk 0:00:06]} 55. h4 {[%clk 0:00:17]}  g4 {[%clk 0:00:05]} 56. Kf2 {[%clk 0:00:18]}  Ke5 {[%clk 0:00:06]} 57. Kg1 {[%clk 0:00:18]}  Kf5 {[%clk 0:00:07]} 58. Kf2 {[%clk 0:00:19]}  Bd5 {[%clk 0:00:07]} 59. Kg1 {[%clk 0:00:20]}  Be6 {[%clk 0:00:08]} 60. Kf2 {[%clk 0:00:20]}  g3+ {[%clk 0:00:08]} 61. Kg1 {[%clk 0:00:21]}  Kg4 {[%clk 0:00:07]} 62. Kh1 {[%clk 0:00:21]}  Kxh4 {[%clk 0:00:08]} 63. Kg2 {[%clk 0:00:22]}  Kg4 {[%clk 0:00:09]} 64. Kh1 {[%clk 0:00:22]}  h4 {[%clk 0:00:10]} 65. Kg2 {[%clk 0:00:22]}  h3+ {[%clk 0:00:10]} 66. Kh1 {[%clk 0:00:23]}  Bd5+ {[%clk 0:00:10]} 67. Kg1 {[%clk 0:00:24]}  h2+ {[%clk 0:00:10]} 68. Kf1 {[%clk 0:00:25]}  h1=Q+ {[%clk 0:00:08]} 69. Ke2 {[%clk 0:00:26]} 0-1


[Site "https://www.chess.com"]

[Event "Titled Tuesday Blitz August 08 Early 2023"]
[White "Thomforde-Toates, Noah"]
[Black "Pumpkin_in_moonlight"]
[WhiteFideId "30951992"]
[WhiteElo "2574"]
[BlackElo "2176"]
[Result "1-0"]
[Round "4"]
[TimeControl "180+1"]
[Date "2023.08.08"]
[WhiteClock "0:01:10"]
[BlackClock "0:00:00"]
[Board "234"]

1. e4 {[%clk 0:03:00]}  e5 {[%clk 0:02:58]} 2. Nf3 {[%clk 0:03:00]}  Nc6 {[%clk 0:02:58]} 3. Bb5 {[%clk 0:03:00]}  Bc5 {[%clk 0:02:50]} 4. O-O {[%clk 0:03:00]}  Qe7 {[%clk 0:02:18]} 5. c3 {[%clk 0:02:46]}  a6 {[%clk 0:01:58]} 6. Ba4 {[%clk 0:02:43]}  b5 {[%clk 0:01:56]} 7. Bb3 {[%clk 0:02:43]}  Bb6 {[%clk 0:01:51]} 8. d4 {[%clk 0:02:40]}  d6 {[%clk 0:01:47]} 9. Re1 {[%clk 0:02:36]}  Nf6 {[%clk 0:01:44]} 10. Bg5 {[%clk 0:02:32]}  h6 {[%clk 0:01:42]} 11. Bh4 {[%clk 0:02:29]}  g5 {[%clk 0:01:39]} 12. Bg3 {[%clk 0:02:29]}  Bg4 {[%clk 0:01:30]} 13. Bd5 {[%clk 0:02:24]}  Qd7 {[%clk 0:01:07]} 14. h3 {[%clk 0:02:06]}  Bh5 {[%clk 0:01:00]} 15. Nbd2 {[%clk 0:02:02]}  Rd8 {[%clk 0:00:55]} 16. a4 {[%clk 0:01:50]}  O-O {[%clk 0:00:51]} 17. axb5 {[%clk 0:01:49]}  axb5 {[%clk 0:00:51]} 18. Qb3 {[%clk 0:01:49]}  exd4 {[%clk 0:00:46]} 19. Qxb5 {[%clk 0:01:42]}  Ne5 {[%clk 0:00:39]} 20. Qxd7 {[%clk 0:01:39]}  Nxf3+ {[%clk 0:00:38]} 21. Nxf3 {[%clk 0:01:39]}  Rxd7 {[%clk 0:00:37]} 22. Bc6 {[%clk 0:01:33]}  Rdd8 {[%clk 0:00:33]} 23. Nxd4 {[%clk 0:01:33]}  Bg6 {[%clk 0:00:28]} 24. f3 {[%clk 0:01:31]}  Nd7 {[%clk 0:00:26]} 25. Bf2 {[%clk 0:01:28]}  Ne5 {[%clk 0:00:25]} 26. Bb5 {[%clk 0:01:28]}  c5 {[%clk 0:00:23]} 27. Nc6 {[%clk 0:01:26]}  Nxc6 {[%clk 0:00:22]} 28. Bxc6 {[%clk 0:01:26]}  Rc8 {[%clk 0:00:20]} 29. Bd5 {[%clk 0:01:26]}  Rb8 {[%clk 0:00:19]} 30. Red1 {[%clk 0:01:24]}  Rfc8 {[%clk 0:00:18]} 31. Bc4 {[%clk 0:01:22]}  Bc7 {[%clk 0:00:16]} 32. b3 {[%clk 0:01:21]}  Kf8 {[%clk 0:00:15]} 33. Ra6 {[%clk 0:01:18]}  Ke7 {[%clk 0:00:15]} 34. Bg3 {[%clk 0:01:19]}  Rd8 {[%clk 0:00:13]} 35. Ra7 {[%clk 0:01:19]}  Rbc8 {[%clk 0:00:11]} 36. Ba6 {[%clk 0:01:13]}  Kd7 {[%clk 0:00:09]} 37. Bxc8+ {[%clk 0:01:10]}  Kxc8 {[%clk 0:00:08]} 38. Ra8+ {[%clk 0:01:09]}  Kb7 {[%clk 0:00:05]} 39. Rxd8 {[%clk 0:01:09]}  Bxd8 {[%clk 0:00:05]} 40. Rxd6 {[%clk 0:01:09]}  Bc7 {[%clk 0:00:00]} 41. Rd7 {[%clk 0:01:10]} 1-0


[Site "https://www.chess.com"]

[Event "Titled Tuesday Blitz August 08 Early 2023"]
[White "Rama, Tejas"]
[Black "Mesfin, Leykun"]
[WhiteFideId "30907381"]
[BlackFideId "15700097"]
[WhiteElo "2497"]
[BlackElo "2226"]
[Result "1-0"]
[Round "4"]
[TimeControl "180+1"]
[Date "2023.08.08"]
[WhiteClock "0:00:07"]
[BlackClock "0:00:00"]
[Board "235"]

1. d4 {[%clk 0:03:00]}  Nf6 {[%clk 0:02:52]} 2. c4 {[%clk 0:02:54]}  g6 {[%clk 0:02:52]} 3. Nf3 {[%clk 0:02:54]}  Bg7 {[%clk 0:02:53]} 4. Nc3 {[%clk 0:02:54]}  O-O {[%clk 0:02:52]} 5. e4 {[%clk 0:02:54]}  d6 {[%clk 0:02:52]} 6. Be2 {[%clk 0:02:54]}  Nc6 {[%clk 0:02:52]} 7. O-O {[%clk 0:02:40]}  e5 {[%clk 0:02:52]} 8. d5 {[%clk 0:02:41]}  Ne7 {[%clk 0:02:51]} 9. b4 {[%clk 0:02:23]}  Ne8 {[%clk 0:02:45]} 10. Nd2 {[%clk 0:02:15]}  f5 {[%clk 0:02:43]} 11. c5 {[%clk 0:02:12]}  f4 {[%clk 0:02:42]} 12. Bg4 {[%clk 0:02:10]}  h5 {[%clk 0:02:38]} 13. Bxc8 {[%clk 0:02:05]}  Rxc8 {[%clk 0:02:36]} 14. Ba3 {[%clk 0:01:46]}  Nf6 {[%clk 0:02:33]} 15. Qa4 {[%clk 0:01:37]}  Rf7 {[%clk 0:02:23]} 16. Rac1 {[%clk 0:01:24]}  Bf8 {[%clk 0:02:17]} 17. f3 {[%clk 0:01:09]}  g5 {[%clk 0:02:13]} 18. Nc4 {[%clk 0:01:02]}  a6 {[%clk 0:01:59]} 19. b5 {[%clk 0:01:00]}  Ng6 {[%clk 0:01:54]} 20. b6 {[%clk 0:00:58]}  cxb6 {[%clk 0:01:49]} 21. Nxd6 {[%clk 0:00:49]}  Bxd6 {[%clk 0:01:40]} 22. cxd6 {[%clk 0:00:49]}  b5 {[%clk 0:01:40]} 23. Qb3 {[%clk 0:00:42]}  g4 {[%clk 0:01:31]} 24. Ne2 {[%clk 0:00:35]}  Kg7 {[%clk 0:01:18]} 25. Rxc8 {[%clk 0:00:34]}  Qxc8 {[%clk 0:01:17]} 26. Rc1 {[%clk 0:00:35]}  Qd8 {[%clk 0:01:15]} 27. Qc3 {[%clk 0:00:24]}  Qb6+ {[%clk 0:01:07]} 28. Qc5 {[%clk 0:00:22]}  Qa5 {[%clk 0:01:04]} 29. Qb4 {[%clk 0:00:18]}  Qb6+ {[%clk 0:01:02]} 30. Qc5 {[%clk 0:00:19]}  Qd8 {[%clk 0:00:59]} 31. Qc8 {[%clk 0:00:17]}  Qb6+ {[%clk 0:00:57]} 32. Bc5 {[%clk 0:00:17]}  Qa5 {[%clk 0:00:56]} 33. Bf2 {[%clk 0:00:16]}  h4 {[%clk 0:00:53]} 34. fxg4 {[%clk 0:00:16]}  Nxg4 {[%clk 0:00:52]} 35. Qxg4 {[%clk 0:00:15]}  Qd2 {[%clk 0:00:49]} 36. d7 {[%clk 0:00:12]}  f3 {[%clk 0:00:46]} 37. d8=Q {[%clk 0:00:09]}  fxe2 {[%clk 0:00:46]} 38. Re1 {[%clk 0:00:09]}  Qxa2 {[%clk 0:00:38]} 39. Qg8+ {[%clk 0:00:05]}  Kxg8 {[%clk 0:00:37]} 40. Qxg6+ {[%clk 0:00:06]}  Rg7 {[%clk 0:00:36]} 41. Qe8+ {[%clk 0:00:06]}  Kh7 {[%clk 0:00:35]} 42. Qh5+ {[%clk 0:00:06]}  Kg8 {[%clk 0:00:35]} 43. Bxh4 {[%clk 0:00:06]}  Qd2 {[%clk 0:00:31]} 44. Qxe5 {[%clk 0:00:06]}  Qe3+ {[%clk 0:00:28]} 45. Kh1 {[%clk 0:00:06]}  Qd2 {[%clk 0:00:23]} 46. Qe8+ {[%clk 0:00:06]}  Kh7 {[%clk 0:00:22]} 47. Qh5+ {[%clk 0:00:07]}  Kg8 {[%clk 0:00:22]} 48. Qe8+ {[%clk 0:00:08]}  Kh7 {[%clk 0:00:22]} 49. Qe6 {[%clk 0:00:06]}  Qd3 {[%clk 0:00:18]} 50. Qf5+ {[%clk 0:00:06]}  Kg8 {[%clk 0:00:18]} 51. Qe6+ {[%clk 0:00:06]}  Kh7 {[%clk 0:00:17]} 52. d6 {[%clk 0:00:06]}  Qd2 {[%clk 0:00:13]} 53. Qf5+ {[%clk 0:00:06]}  Kg8 {[%clk 0:00:12]} 54. e5 {[%clk 0:00:06]}  Qh6 {[%clk 0:00:10]} 55. Qc8+ {[%clk 0:00:06]}  Kh7 {[%clk 0:00:08]} 56. Qf5+ {[%clk 0:00:07]}  Kg8 {[%clk 0:00:08]} 57. Bf6 {[%clk 0:00:07]}  Qd2 {[%clk 0:00:00]} 58. Qf2 {[%clk 0:00:07]} 1-0


[Site "https://www.chess.com"]

[Event "Titled Tuesday Blitz August 08 Early 2023"]
[White "Clawitter, Craig"]
[Black "Dishman, Stephen"]
[WhiteFideId "2023105"]
[BlackFideId "403024"]
[WhiteElo "2211"]
[BlackElo "2391"]
[Result "0-1"]
[Round "4"]
[TimeControl "180+1"]
[Date "2023.08.08"]
[WhiteClock "0:00:00"]
[BlackClock "0:01:15"]
[Board "237"]

1. e4 {[%clk 0:02:24]}  d6 {[%clk 0:02:58]} 2. d4 {[%clk 0:02:23]}  Nf6 {[%clk 0:02:59]} 3. Nc3 {[%clk 0:02:24]}  e5 {[%clk 0:02:59]} 4. Nf3 {[%clk 0:02:23]}  Nbd7 {[%clk 0:02:59]} 5. g4 {[%clk 0:02:18]}  Nxg4 {[%clk 0:02:58]} 6. Rg1 {[%clk 0:02:18]}  Ngf6 {[%clk 0:02:59]} 7. Bc4 {[%clk 0:02:12]}  h6 {[%clk 0:02:59]} 8. Be3 {[%clk 0:02:10]}  c6 {[%clk 0:02:58]} 9. Qe2 {[%clk 0:02:05]}  b5 {[%clk 0:02:56]} 10. Bb3 {[%clk 0:02:05]}  Bb7 {[%clk 0:02:50]} 11. O-O-O {[%clk 0:02:03]}  Qe7 {[%clk 0:02:47]} 12. dxe5 {[%clk 0:01:53]}  dxe5 {[%clk 0:02:42]} 13. Nh4 {[%clk 0:01:52]}  g6 {[%clk 0:02:41]} 14. Rxg6 {[%clk 0:01:45]}  fxg6 {[%clk 0:02:41]} 15. Nxg6 {[%clk 0:01:46]}  Qh7 {[%clk 0:02:36]} 16. Nxh8 {[%clk 0:01:33]}  Qxh8 {[%clk 0:02:36]} 17. Nxb5 {[%clk 0:01:29]}  cxb5 {[%clk 0:02:29]} 18. Qxb5 {[%clk 0:01:29]}  Bxe4 {[%clk 0:02:21]} 19. Ba4 {[%clk 0:01:04]}  Qh7 {[%clk 0:02:12]} 20. Qxe5+ {[%clk 0:00:52]}  Qe7 {[%clk 0:02:10]} 21. Qc7 {[%clk 0:00:42]}  Bg7 {[%clk 0:01:48]} 22. Bc5 {[%clk 0:00:27]}  Qe6 {[%clk 0:01:37]} 23. Rd6 {[%clk 0:00:19]}  Qh3 {[%clk 0:01:28]} 24. Bb3 {[%clk 0:00:06]}  Bf5 {[%clk 0:01:18]} 25. Rxf6 {[%clk 0:00:00]}  Bxf6 {[%clk 0:01:15]} 0-1


[Site "https://www.chess.com"]

[Event "Titled Tuesday Blitz August 08 Early 2023"]
[White "Stork, Oliver"]
[Black "Thiel, Thomas"]
[WhiteFideId "12955728"]
[BlackFideId "4615964"]
[WhiteElo "2389"]
[BlackElo "2210"]
[Result "1/2-1/2"]
[Round "4"]
[TimeControl "180+1"]
[Date "2023.08.08"]
[WhiteClock "0:00:34"]
[BlackClock "0:01:16"]
[Board "238"]

1. d4 {[%clk 0:03:00]}  d5 {[%clk 0:02:57]} 2. c4 {[%clk 0:03:00]}  dxc4 {[%clk 0:02:57]} 3. Nf3 {[%clk 0:02:59]}  c6 {[%clk 0:02:53]} 4. e3 {[%clk 0:02:55]}  b5 {[%clk 0:02:53]} 5. a4 {[%clk 0:02:55]}  a6 {[%clk 0:02:49]} 6. b3 {[%clk 0:02:47]}  cxb3 {[%clk 0:02:44]} 7. axb5 {[%clk 0:02:47]}  cxb5 {[%clk 0:02:44]} 8. Bxb5+ {[%clk 0:02:46]}  Bd7 {[%clk 0:02:43]} 9. Bxd7+ {[%clk 0:02:46]}  Nxd7 {[%clk 0:02:43]} 10. Qxb3 {[%clk 0:02:47]}  e6 {[%clk 0:02:41]} 11. O-O {[%clk 0:02:47]}  Ngf6 {[%clk 0:02:41]} 12. Ba3 {[%clk 0:02:44]}  Bxa3 {[%clk 0:02:36]} 13. Qxa3 {[%clk 0:02:45]}  Qe7 {[%clk 0:02:34]} 14. Nc3 {[%clk 0:02:34]}  Qxa3 {[%clk 0:02:30]} 15. Rxa3 {[%clk 0:02:35]}  O-O {[%clk 0:02:20]} 16. Rfa1 {[%clk 0:02:35]}  Rfc8 {[%clk 0:02:18]} 17. h3 {[%clk 0:02:30]}  h6 {[%clk 0:01:56]} 18. Nb5 {[%clk 0:02:14]}  Rc6 {[%clk 0:01:48]} 19. Rc3 {[%clk 0:01:47]}  Rxc3 {[%clk 0:01:40]} 20. Nxc3 {[%clk 0:01:48]}  Nb6 {[%clk 0:01:39]} 21. Ne5 {[%clk 0:01:45]}  Nfd5 {[%clk 0:01:39]} 22. Nxd5 {[%clk 0:01:36]}  Nxd5 {[%clk 0:01:40]} 23. Ra5 {[%clk 0:01:35]}  Nb4 {[%clk 0:01:31]} 24. Nc4 {[%clk 0:00:46]}  Nc6 {[%clk 0:01:29]} 25. Ra4 {[%clk 0:00:45]}  a5 {[%clk 0:01:16]} 26. e4 {[%clk 0:00:34]} 1/2-1/2


[Site "https://www.chess.com"]

[Event "Titled Tuesday Blitz August 08 Early 2023"]
[White "Chudnovsky, Jacob"]
[Black "Prohorov, Olexandr"]
[WhiteFideId "2010046"]
[BlackFideId "14105578"]
[WhiteElo "2388"]
[BlackElo "2190"]
[Result "1-0"]
[Round "4"]
[TimeControl "180+1"]
[Date "2023.08.08"]
[WhiteClock "0:00:44"]
[BlackClock "0:00:00"]
[Board "239"]

1. e4 {[%clk 0:02:53]}  e6 {[%clk 0:01:05]} 2. d4 {[%clk 0:02:46]}  d5 {[%clk 0:01:04]} 3. Nc3 {[%clk 0:02:46]}  Nc6 {[%clk 0:01:04]} 4. Nf3 {[%clk 0:02:46]}  Nf6 {[%clk 0:01:02]} 5. Bg5 {[%clk 0:02:44]}  Be7 {[%clk 0:01:02]} 6. e5 {[%clk 0:02:43]}  Ne4 {[%clk 0:01:02]} 7. Bxe7 {[%clk 0:02:41]}  Qxe7 {[%clk 0:01:02]} 8. a3 {[%clk 0:02:39]}  f6 {[%clk 0:01:00]} 9. exf6 {[%clk 0:02:38]}  Qxf6 {[%clk 0:00:58]} 10. Bd3 {[%clk 0:02:38]}  Nxc3 {[%clk 0:00:56]} 11. bxc3 {[%clk 0:02:39]}  O-O {[%clk 0:00:57]} 12. Qe2 {[%clk 0:02:38]}  Bd7 {[%clk 0:00:56]} 13. O-O {[%clk 0:02:37]}  Rae8 {[%clk 0:00:55]} 14. Ne5 {[%clk 0:02:36]}  Nxe5 {[%clk 0:00:53]} 15. dxe5 {[%clk 0:02:37]}  Qh6 {[%clk 0:00:52]} 16. g3 {[%clk 0:02:35]}  c5 {[%clk 0:00:49]} 17. Qg4 {[%clk 0:02:29]}  Bc6 {[%clk 0:00:47]} 18. f4 {[%clk 0:02:28]}  d4 {[%clk 0:00:42]} 19. cxd4 {[%clk 0:02:26]}  cxd4 {[%clk 0:00:43]} 20. Rad1 {[%clk 0:02:19]}  Kh8 {[%clk 0:00:37]} 21. Rfe1 {[%clk 0:02:17]}  Rd8 {[%clk 0:00:36]} 22. Be4 {[%clk 0:02:15]}  a6 {[%clk 0:00:30]} 23. Qf3 {[%clk 0:02:14]}  Bxe4 {[%clk 0:00:28]} 24. Qxe4 {[%clk 0:02:14]}  b5 {[%clk 0:00:25]} 25. Rxd4 {[%clk 0:02:13]}  Rxd4 {[%clk 0:00:24]} 26. Qxd4 {[%clk 0:02:13]}  Qg6 {[%clk 0:00:24]} 27. Qd6 {[%clk 0:02:09]}  Rc8 {[%clk 0:00:21]} 28. Re2 {[%clk 0:02:05]}  h5 {[%clk 0:00:20]} 29. Qxa6 {[%clk 0:01:56]}  Rc3 {[%clk 0:00:18]} 30. Qxb5 {[%clk 0:01:53]}  h4 {[%clk 0:00:17]} 31. Rg2 {[%clk 0:01:48]}  h3 {[%clk 0:00:17]} 32. Rf2 {[%clk 0:01:42]}  Qe4 {[%clk 0:00:16]} 33. Qe2 {[%clk 0:01:40]}  Qd5 {[%clk 0:00:13]} 34. Qh5+ {[%clk 0:01:35]}  Kg8 {[%clk 0:00:13]} 35. Qxh3 {[%clk 0:01:36]}  Re3 {[%clk 0:00:10]} 36. Qg2 {[%clk 0:01:26]}  Qd1+ {[%clk 0:00:09]} 37. Rf1 {[%clk 0:01:25]}  Qd4 {[%clk 0:00:09]} 38. Kh1 {[%clk 0:01:25]}  Rxa3 {[%clk 0:00:10]} 39. Qe2 {[%clk 0:01:17]}  Re3 {[%clk 0:00:09]} 40. Qg2 {[%clk 0:01:14]}  Rc3 {[%clk 0:00:07]} 41. h4 {[%clk 0:01:13]}  Qe3 {[%clk 0:00:06]} 42. Kh2 {[%clk 0:01:12]}  Ra3 {[%clk 0:00:05]} 43. h5 {[%clk 0:01:10]}  Rc3 {[%clk 0:00:05]} 44. g4 {[%clk 0:01:07]}  Kh7 {[%clk 0:00:06]} 45. g5 {[%clk 0:01:05]}  Rc4 {[%clk 0:00:05]} 46. Qf3 {[%clk 0:01:00]}  Qd2+ {[%clk 0:00:04]} 47. Rf2 {[%clk 0:01:00]}  Qe1 {[%clk 0:00:04]} 48. f5 {[%clk 0:00:58]}  Rh4+ {[%clk 0:00:03]} 49. Kg3 {[%clk 0:00:58]}  Rd4 {[%clk 0:00:01]} 50. g6+ {[%clk 0:00:56]}  Kh6 {[%clk 0:00:01]} 51. f6 {[%clk 0:00:50]}  Qg1+ {[%clk 0:00:01]} 52. Qg2 {[%clk 0:00:49]}  Qe1 {[%clk 0:00:01]} 53. Kh3 {[%clk 0:00:47]}  Qd1 {[%clk 0:00:00]} 54. Qf3 {[%clk 0:00:44]} 1-0


[Site "https://www.chess.com"]

[Event "Titled Tuesday Blitz August 08 Early 2023"]
[White "Gatterer, Florian"]
[Black "Baruch, Liam"]
[WhiteFideId "811688"]
[BlackFideId "14322064"]
[WhiteElo "2347"]
[BlackElo "2161"]
[Result "1-0"]
[Round "4"]
[TimeControl "180+1"]
[Date "2023.08.08"]
[WhiteClock "0:01:04"]
[BlackClock "0:00:36"]
[Board "244"]

1. c4 {[%clk 0:03:00]}  e6 {[%clk 0:03:00]} 2. Nf3 {[%clk 0:02:59]}  d5 {[%clk 0:03:01]} 3. g3 {[%clk 0:03:00]}  Nf6 {[%clk 0:03:01]} 4. Bg2 {[%clk 0:03:01]}  Be7 {[%clk 0:03:02]} 5. O-O {[%clk 0:03:01]}  O-O {[%clk 0:03:03]} 6. b3 {[%clk 0:03:01]}  c5 {[%clk 0:03:03]} 7. cxd5 {[%clk 0:03:00]}  Nxd5 {[%clk 0:03:03]} 8. Bb2 {[%clk 0:02:59]}  Nc6 {[%clk 0:03:03]} 9. Nc3 {[%clk 0:02:58]}  Bf6 {[%clk 0:03:03]} 10. Qc1 {[%clk 0:02:55]}  Bd7 {[%clk 0:02:52]} 11. Nxd5 {[%clk 0:02:54]}  Bxb2 {[%clk 0:02:48]} 12. Qxb2 {[%clk 0:02:54]}  exd5 {[%clk 0:02:48]} 13. d4 {[%clk 0:02:54]}  cxd4 {[%clk 0:02:34]} 14. Nxd4 {[%clk 0:02:53]}  Qf6 {[%clk 0:02:33]} 15. Rfd1 {[%clk 0:02:52]}  Rad8 {[%clk 0:02:20]} 16. Qd2 {[%clk 0:02:48]}  Nxd4 {[%clk 0:02:18]} 17. Qxd4 {[%clk 0:02:47]}  Qxd4 {[%clk 0:02:19]} 18. Rxd4 {[%clk 0:02:47]}  Bc6 {[%clk 0:02:18]} 19. Rad1 {[%clk 0:02:47]}  Rfe8 {[%clk 0:02:17]} 20. e4 {[%clk 0:02:45]}  Re5 {[%clk 0:02:11]} 21. exd5 {[%clk 0:02:44]}  Bd7 {[%clk 0:02:12]} 22. Rc1 {[%clk 0:02:33]}  Kf8 {[%clk 0:02:08]} 23. Bf3 {[%clk 0:02:30]}  Be6 {[%clk 0:01:56]} 24. Rc7 {[%clk 0:02:26]}  Rd7 {[%clk 0:01:46]} 25. Rxd7 {[%clk 0:01:51]}  Bxd7 {[%clk 0:01:47]} 26. Rc4 {[%clk 0:01:49]}  Bh3 {[%clk 0:01:39]} 27. Rc1 {[%clk 0:01:49]}  Ke7 {[%clk 0:01:37]} 28. Bg2 {[%clk 0:01:44]}  Bxg2 {[%clk 0:01:36]} 29. Kxg2 {[%clk 0:01:44]}  Rxd5 {[%clk 0:01:37]} 30. Rc7+ {[%clk 0:01:44]}  Rd7 {[%clk 0:01:37]} 31. Rxd7+ {[%clk 0:01:44]}  Kxd7 {[%clk 0:01:38]} 32. Kf3 {[%clk 0:01:45]}  Kd6 {[%clk 0:01:38]} 33. Ke4 {[%clk 0:01:45]}  Ke6 {[%clk 0:01:34]} 34. f4 {[%clk 0:01:43]}  Kd6 {[%clk 0:01:34]} 35. Kd4 {[%clk 0:01:40]}  h6 {[%clk 0:01:25]} 36. h4 {[%clk 0:01:39]}  g6 {[%clk 0:01:19]} 37. g4 {[%clk 0:01:37]}  b6 {[%clk 0:01:12]} 38. a3 {[%clk 0:01:36]}  Ke6 {[%clk 0:01:09]} 39. Kc4 {[%clk 0:01:25]}  a6 {[%clk 0:01:08]} 40. Kd4 {[%clk 0:01:25]}  h5 {[%clk 0:00:47]} 41. gxh5 {[%clk 0:01:18]}  gxh5 {[%clk 0:00:48]} 42. Ke4 {[%clk 0:01:18]}  f5+ {[%clk 0:00:42]} 43. Kd4 {[%clk 0:01:18]}  Kd6 {[%clk 0:00:42]} 44. a4 {[%clk 0:01:12]}  Ke6 {[%clk 0:00:41]} 45. a5 {[%clk 0:01:03]}  bxa5 {[%clk 0:00:30]} 46. Kc5 {[%clk 0:01:02]}  Kd7 {[%clk 0:00:31]} 47. Kd5 {[%clk 0:01:02]}  Ke7 {[%clk 0:00:29]} 48. Ke5 {[%clk 0:01:02]}  Kf7 {[%clk 0:00:29]} 49. Kxf5 {[%clk 0:01:02]}  Kg7 {[%clk 0:00:30]} 50. Kg5 {[%clk 0:01:02]}  Kh7 {[%clk 0:00:30]} 51. Kxh5 {[%clk 0:01:03]}  Kg7 {[%clk 0:00:31]} 52. Kg5 {[%clk 0:01:03]}  Kf7 {[%clk 0:00:31]} 53. f5 {[%clk 0:01:03]}  Kg7 {[%clk 0:00:32]} 54. f6+ {[%clk 0:01:00]}  Kf7 {[%clk 0:00:32]} 55. Kf5 {[%clk 0:01:00]}  Kf8 {[%clk 0:00:32]} 56. Ke6 {[%clk 0:01:00]}  a4 {[%clk 0:00:32]} 57. bxa4 {[%clk 0:01:00]}  a5 {[%clk 0:00:33]} 58. Kd5 {[%clk 0:01:00]}  Kf7 {[%clk 0:00:33]} 59. Kc5 {[%clk 0:01:00]}  Kxf6 {[%clk 0:00:32]} 60. Kb5 {[%clk 0:01:01]}  Kg6 {[%clk 0:00:33]} 61. Kxa5 {[%clk 0:01:02]}  Kh5 {[%clk 0:00:34]} 62. Kb6 {[%clk 0:01:02]}  Kxh4 {[%clk 0:00:35]} 63. a5 {[%clk 0:01:03]}  Kg5 {[%clk 0:00:35]} 64. a6 {[%clk 0:01:04]}  Kf5 {[%clk 0:00:36]} 65. a7 {[%clk 0:01:04]} 1-0


[Site "https://www.chess.com"]